[Event "Early-Titled-Tuesday-Blitz-September-12-2023"]
[Site "Chess.com"]
[Date "2023.09.12"]
[Round "2"]
[White "Khromkin"]
[Black "OK97"]
[Result "0-1"]
[WhiteElo "2426"]
[BlackElo "2817"]
[TimeControl "180+1"]
[EndTime "8:16:09 PDT"]
[Termination "OK97 won by resignation"]

1. d4 {[%clk 0:03:00.9]} 1... Nf6 {[%clk 0:03:00.2]} 2. c4 {[%clk 0:03:00.6]}
2... g6 {[%clk 0:03:00.7]} 3. Nf3 {[%clk 0:03:01]} 3... Bg7 {[%clk 0:03:00.9]}
4. Nc3 {[%clk 0:03:01.6]} 4... d6 {[%clk 0:03:01.3]} 5. g3 {[%clk 0:03:02]} 5...
O-O {[%clk 0:03:00.9]} 6. Bg2 {[%clk 0:03:02.6]} 6... c6 {[%clk 0:03:01.3]} 7.
O-O {[%clk 0:03:03]} 7... Bf5 {[%clk 0:03:01.9]} 8. Nh4 {[%clk 0:03:01.5]} 8...
Be6 {[%clk 0:03:01.4]} 9. d5 {[%clk 0:02:59.5]} 9... cxd5 {[%clk 0:03:01.2]} 10.
cxd5 {[%clk 0:03:00]} 10... Bd7 {[%clk 0:03:01.9]} 11. Nf3 {[%clk 0:03:00.6]}
11... a5 {[%clk 0:02:59.9]} 12. Nd4 {[%clk 0:02:58.7]} 12... Na6 {[%clk
0:02:59.7]} 13. h3 {[%clk 0:02:52.7]} 13... Nc5 {[%clk 0:02:57.9]} 14. e4 {[%clk
0:02:22.4]} 14... a4 {[%clk 0:02:54.4]} 15. Rb1 {[%clk 0:02:20.8]} 15... Qa5
{[%clk 0:02:51]} 16. Bd2 {[%clk 0:02:21.1]} 16... Qa6 {[%clk 0:02:50.9]} 17. Re1
{[%clk 0:02:17.9]} 17... Rfc8 {[%clk 0:02:38.3]} 18. Bf1 {[%clk 0:02:15]} 18...
Qb6 {[%clk 0:02:38.4]} 19. Be3 {[%clk 0:02:14.7]} 19... Qd8 {[%clk 0:02:25.3]}
20. f3 {[%clk 0:02:09.8]} 20... a3 {[%clk 0:02:21.2]} 21. Qd2 {[%clk 0:01:59.7]}
21... axb2 {[%clk 0:02:19.3]} 22. Rxb2 {[%clk 0:02:00.3]} 22... Qa5 {[%clk
0:02:07.4]} 23. Rc1 {[%clk 0:01:48.2]} 23... Nh5 {[%clk 0:01:53.2]} 24. Kg2
{[%clk 0:01:40.8]} 24... Na4 {[%clk 0:01:44.7]} 25. Nxa4 {[%clk 0:01:38.5]}
25... Qxd2+ {[%clk 0:01:39.3]} 26. Bxd2 {[%clk 0:01:35.8]} 26... Rxc1 {[%clk
0:01:30.2]} 27. Bxc1 {[%clk 0:01:35]} 27... Bxd4 {[%clk 0:01:19.8]} 28. Rb4
{[%clk 0:00:47.8]} 28... Rxa4 {[%clk 0:01:18.3]} 29. Rxb7 {[%clk 0:00:47]} 29...
Rxa2+ {[%clk 0:01:17]} 0-1

[Event "Early-Titled-Tuesday-Blitz-September-12-2023"]
[Site "Chess.com"]
[Date "2023.09.12"]
[Round "2"]
[White "Gareth-Bale11"]
[Black "DrDreBeats"]
[Result "1-0"]
[WhiteElo "2782"]
[BlackElo "2543"]
[TimeControl "180+1"]
[EndTime "8:16:10 PDT"]
[Termination "Gareth-Bale11 won by resignation"]

1. e4 {[%clk 0:02:55.4]} 1... d5 {[%clk 0:02:59.7]} 2. exd5 {[%clk 0:02:54.1]}
2... Qxd5 {[%clk 0:02:59.9]} 3. Nc3 {[%clk 0:02:54.3]} 3... Qa5 {[%clk 0:03:00]}
4. d4 {[%clk 0:02:54.1]} 4... Nf6 {[%clk 0:03:00.1]} 5. Nf3 {[%clk 0:02:53.3]}
5... Nc6 {[%clk 0:02:59.7]} 6. Bb5 {[%clk 0:02:50.1]} 6... Nd5 {[%clk
0:02:59.5]} 7. Qd3 {[%clk 0:02:24.8]} 7... Nxc3 {[%clk 0:02:58.8]} 8. bxc3
{[%clk 0:02:22.3]} 8... a6 {[%clk 0:02:59.2]} 9. Bc4 {[%clk 0:02:13.9]} 9... Qf5
{[%clk 0:02:50.5]} 10. O-O {[%clk 0:02:11.5]} 10... Qxd3 {[%clk 0:02:50.3]} 11.
Bxd3 {[%clk 0:02:02.8]} 11... Bg4 {[%clk 0:02:50.3]} 12. Ng5 {[%clk 0:02:02.9]}
12... h6 {[%clk 0:02:47.8]} 13. Ne4 {[%clk 0:02:02.2]} 13... O-O-O {[%clk
0:02:46.4]} 14. h3 {[%clk 0:01:55.4]} 14... Bf5 {[%clk 0:02:44.5]} 15. Nd6+
{[%clk 0:01:49.7]} 15... Rxd6 {[%clk 0:02:39.1]} 16. Bxf5+ {[%clk 0:01:50.6]}
16... e6 {[%clk 0:02:39.7]} 17. Be4 {[%clk 0:01:50.9]} 17... g6 {[%clk
0:02:37.8]} 18. Rb1 {[%clk 0:01:49.9]} 18... Bg7 {[%clk 0:02:37.1]} 19. Bf4
{[%clk 0:01:47.7]} 19... Rdd8 {[%clk 0:02:30.9]} 20. Bxc6 {[%clk 0:01:40.2]}
20... bxc6 {[%clk 0:02:30.6]} 21. Rb4 {[%clk 0:01:41.1]} 21... Rd5 {[%clk
0:02:29.2]} 22. Rfb1 {[%clk 0:01:38.9]} 22... Rb5 {[%clk 0:02:27.3]} 23. a4
{[%clk 0:01:34.4]} 23... Rxb4 {[%clk 0:02:27.6]} 24. Rxb4 {[%clk 0:01:35.3]}
24... Re8 {[%clk 0:02:24.5]} 25. h4 {[%clk 0:01:32.1]} 25... Kd7 {[%clk
0:02:19.9]} 26. g4 {[%clk 0:01:32.1]} 26... e5 {[%clk 0:02:20]} 27. dxe5 {[%clk
0:01:29.9]} 27... Bxe5 {[%clk 0:02:20.6]} 28. Bxh6 {[%clk 0:01:29.9]} 28... Bxc3
{[%clk 0:02:20.6]} 29. Rc4 {[%clk 0:01:26.7]} 29... Be5 {[%clk 0:02:17.6]} 30.
Be3 {[%clk 0:01:26.1]} 30... Rh8 {[%clk 0:02:12.6]} 31. Re4 {[%clk 0:01:23.6]}
31... Bf6 {[%clk 0:02:06]} 32. g5 {[%clk 0:01:21.5]} 32... Bc3 {[%clk
0:02:03.8]} 33. Kg2 {[%clk 0:01:18.7]} 33... Rb8 {[%clk 0:02:03.7]} 34. Rf4
{[%clk 0:01:14.1]} 34... Ke6 {[%clk 0:02:02.9]} 35. Rc4 {[%clk 0:01:14.1]} 35...
Be5 {[%clk 0:01:59.8]} 36. Rxc6+ {[%clk 0:01:14]} 36... Kd5 {[%clk 0:01:59.6]}
37. Rxa6 {[%clk 0:01:11.4]} 37... Rb4 {[%clk 0:01:59.8]} 38. a5 {[%clk
0:01:04.2]} 38... c5 {[%clk 0:01:56.9]} 39. Ra7 {[%clk 0:00:59.9]} 39... f5
{[%clk 0:01:55.9]} 40. gxf6 {[%clk 0:00:57.4]} 40... Bxf6 {[%clk 0:01:55.8]} 41.
Rc7 {[%clk 0:00:53.6]} 41... Rb5 {[%clk 0:01:55.9]} 42. a6 {[%clk 0:00:52.2]}
42... Be5 {[%clk 0:01:49.3]} 43. a7 {[%clk 0:00:50.9]} 43... Bxc7 {[%clk
0:01:46.2]} 44. a8=Q+ {[%clk 0:00:50]} 1-0

[Event "Early-Titled-Tuesday-Blitz-September-12-2023"]
[Site "Chess.com"]
[Date "2023.09.12"]
[Round "2"]
[White "Nekoo04"]
[Black "LeoLV10"]
[Result "1-0"]
[WhiteElo "2287"]
[BlackElo "2491"]
[TimeControl "180+1"]
[EndTime "8:16:12 PDT"]
[Termination "Nekoo04 won by resignation"]

1. d4 {[%clk 0:02:45.9]} 1... Nf6 {[%clk 0:02:59.8]} 2. c4 {[%clk 0:02:44.6]}
2... e6 {[%clk 0:02:59.4]} 3. Nf3 {[%clk 0:02:43.8]} 3... b6 {[%clk 0:02:59.1]}
4. g3 {[%clk 0:02:43.7]} 4... Bb7 {[%clk 0:02:58.1]} 5. Bg2 {[%clk 0:02:43.5]}
5... Be7 {[%clk 0:02:47.6]} 6. O-O {[%clk 0:02:37.5]} 6... O-O {[%clk
0:02:46.7]} 7. Nc3 {[%clk 0:02:30.4]} 7... Ne4 {[%clk 0:02:42.1]} 8. Qc2 {[%clk
0:02:22.1]} 8... Nxc3 {[%clk 0:02:41]} 9. bxc3 {[%clk 0:02:04.7]} 9... Nc6
{[%clk 0:02:26.3]} 10. d5 {[%clk 0:01:59.2]} 10... Na5 {[%clk 0:02:24.5]} 11.
Rd1 {[%clk 0:00:55.9]} 11... Qc8 {[%clk 0:02:06.9]} 12. Rd4 {[%clk 0:00:38.3]}
12... Bf6 {[%clk 0:01:48.9]} 13. Rf4 {[%clk 0:00:37.2]} 13... exd5 {[%clk
0:01:41]} 14. cxd5 {[%clk 0:00:26]} 14... Rb8 {[%clk 0:01:39.2]} 15. Rxf6 {[%clk
0:00:20.3]} 15... gxf6 {[%clk 0:01:38.1]} 16. Bh6 {[%clk 0:00:18.8]} 16... Bxd5
{[%clk 0:01:32.8]} 17. Qf5 {[%clk 0:00:17.6]} 17... d6 {[%clk 0:01:24.9]} 18.
Qxf6 {[%clk 0:00:15.1]} 18... Qg4 {[%clk 0:01:22.1]} 19. Ng5 {[%clk 0:00:14.8]}
1-0

[Event "Early-Titled-Tuesday-Blitz-September-12-2023"]
[Site "Chess.com"]
[Date "2023.09.12"]
[Round "2"]
[White "OPQRC"]
[Black "Massakru"]
[Result "0-1"]
[WhiteElo "2596"]
[BlackElo "2413"]
[TimeControl "180+1"]
[EndTime "8:16:13 PDT"]
[Termination "Massakru won by resignation"]

1. e4 {[%clk 0:02:56.4]} 1... e5 {[%clk 0:02:52]} 2. Nf3 {[%clk 0:02:55.6]} 2...
Nc6 {[%clk 0:02:52.3]} 3. Bc4 {[%clk 0:02:55.5]} 3... Nf6 {[%clk 0:02:52]} 4. d4
{[%clk 0:02:55.1]} 4... exd4 {[%clk 0:02:51.3]} 5. e5 {[%clk 0:02:56]} 5... d5
{[%clk 0:02:51.4]} 6. Bb5 {[%clk 0:02:56.4]} 6... Ne4 {[%clk 0:02:51.7]} 7. Nxd4
{[%clk 0:02:55.3]} 7... Bd7 {[%clk 0:02:52.4]} 8. Bxc6 {[%clk 0:02:55.1]} 8...
bxc6 {[%clk 0:02:52.6]} 9. O-O {[%clk 0:02:55.7]} 9... Bc5 {[%clk 0:02:52.9]}
10. f3 {[%clk 0:02:55.6]} 10... Ng5 {[%clk 0:02:53]} 11. f4 {[%clk 0:02:56.2]}
11... Ne4 {[%clk 0:02:53.3]} 12. Be3 {[%clk 0:02:56.1]} 12... O-O {[%clk
0:02:51.4]} 13. Nd2 {[%clk 0:02:53.5]} 13... f6 {[%clk 0:02:44.2]} 14. Nxe4
{[%clk 0:01:51]} 14... dxe4 {[%clk 0:02:43.1]} 15. Kh1 {[%clk 0:01:47.3]} 15...
fxe5 {[%clk 0:02:39.6]} 16. fxe5 {[%clk 0:01:46.7]} 16... Qe7 {[%clk 0:02:37.4]}
17. Qh5 {[%clk 0:01:28.6]} 17... Rxf1+ {[%clk 0:02:25.3]} 18. Rxf1 {[%clk
0:01:27.5]} 18... Be8 {[%clk 0:02:25.9]} 19. Qg4 {[%clk 0:00:56.7]} 19... Bg6
{[%clk 0:01:58]} 20. Nxc6 {[%clk 0:00:51.2]} 20... Qe8 {[%clk 0:01:45]} 21. Bxc5
{[%clk 0:00:49.5]} 21... Qxc6 {[%clk 0:01:44.3]} 22. Bd4 {[%clk 0:00:40.3]}
22... Qc4 {[%clk 0:01:39.8]} 23. Qd1 {[%clk 0:00:34.8]} 23... Rd8 {[%clk
0:01:32.9]} 24. c3 {[%clk 0:00:35.1]} 24... c5 {[%clk 0:01:31.6]} 25. b3 {[%clk
0:00:35.2]} 25... Qd5 {[%clk 0:01:30.4]} 26. e6 {[%clk 0:00:29.2]} 26... Qxe6
{[%clk 0:01:22.8]} 0-1

[Event "Early-Titled-Tuesday-Blitz-September-12-2023"]
[Site "Chess.com"]
[Date "2023.09.12"]
[Round "2"]
[White "Maksimus1998"]
[Black "ckgchess"]
[Result "0-1"]
[WhiteElo "2562"]
[BlackElo "2863"]
[TimeControl "180+1"]
[EndTime "8:16:14 PDT"]
[Termination "ckgchess won by resignation"]

1. d4 {[%clk 0:03:00.7]} 1... Nf6 {[%clk 0:02:58.2]} 2. Nf3 {[%clk 0:03:00.5]}
2... d5 {[%clk 0:02:57.5]} 3. e3 {[%clk 0:03:00.7]} 3... e6 {[%clk 0:02:55.2]}
4. Bd3 {[%clk 0:02:57.8]} 4... Be7 {[%clk 0:02:55]} 5. O-O {[%clk 0:02:54.3]}
5... O-O {[%clk 0:02:55]} 6. b3 {[%clk 0:02:54.4]} 6... c5 {[%clk 0:02:50.1]} 7.
Bb2 {[%clk 0:02:54.7]} 7... cxd4 {[%clk 0:02:49.9]} 8. exd4 {[%clk 0:02:53.6]}
8... b6 {[%clk 0:02:47.2]} 9. Qe2 {[%clk 0:02:53.4]} 9... Bb7 {[%clk 0:02:40.1]}
10. Nbd2 {[%clk 0:02:52.7]} 10... Nc6 {[%clk 0:02:40]} 11. a3 {[%clk 0:02:52.6]}
11... Bd6 {[%clk 0:02:25.3]} 12. Ne5 {[%clk 0:02:52]} 12... Ne7 {[%clk
0:02:19.5]} 13. Rae1 {[%clk 0:02:33.3]} 13... Rc8 {[%clk 0:02:19.1]} 14. f4
{[%clk 0:02:25.4]} 14... Qc7 {[%clk 0:02:14.7]} 15. g4 {[%clk 0:02:13.1]} 15...
Ne4 {[%clk 0:02:02.6]} 16. Bxe4 {[%clk 0:02:12.9]} 16... dxe4 {[%clk 0:02:03.5]}
17. c4 {[%clk 0:02:13.3]} 17... f5 {[%clk 0:01:54.6]} 18. Rc1 {[%clk 0:01:58.4]}
18... Ng6 {[%clk 0:01:44.8]} 19. gxf5 {[%clk 0:01:52.7]} 19... exf5 {[%clk
0:01:40.6]} 20. Qe3 {[%clk 0:01:33.8]} 20... Qe7 {[%clk 0:01:29.2]} 21. b4
{[%clk 0:01:31.9]} 21... Bxe5 {[%clk 0:01:19]} 22. dxe5 {[%clk 0:01:23.9]} 22...
Rcd8 {[%clk 0:01:18.6]} 23. Bd4 {[%clk 0:01:20.7]} 23... Qh4 {[%clk 0:01:15.1]}
24. Nb3 {[%clk 0:01:19.3]} 24... a5 {[%clk 0:01:02.2]} 25. Kh1 {[%clk 0:01:05]}
25... a4 {[%clk 0:01:00]} 26. Na1 {[%clk 0:00:59.6]} 26... Rxd4 {[%clk
0:00:59.5]} 27. Qxd4 {[%clk 0:00:52.8]} 27... e3+ {[%clk 0:01:00.4]} 0-1

[Event "Early-Titled-Tuesday-Blitz-September-12-2023"]
[Site "Chess.com"]
[Date "2023.09.12"]
[Round "2"]
[White "Vladimir_Zakhartsov"]
[Black "Dixit_Nikhil"]
[Result "1-0"]
[WhiteElo "2894"]
[BlackElo "2572"]
[TimeControl "180+1"]
[EndTime "8:16:15 PDT"]
[Termination "Vladimir_Zakhartsov won by resignation"]

1. d4 {[%clk 0:02:57.2]} 1... Nf6 {[%clk 0:02:37.7]} 2. c4 {[%clk 0:02:55.3]}
2... g6 {[%clk 0:02:32.7]} 3. Nc3 {[%clk 0:02:50.4]} 3... Bg7 {[%clk 0:02:32.6]}
4. e4 {[%clk 0:02:50.9]} 4... d6 {[%clk 0:02:28.2]} 5. h3 {[%clk 0:02:51.5]}
5... O-O {[%clk 0:02:15.1]} 6. Be3 {[%clk 0:02:51.6]} 6... a6 {[%clk 0:02:13]}
7. Nf3 {[%clk 0:02:43.2]} 7... c6 {[%clk 0:02:08.8]} 8. Bd3 {[%clk 0:02:40.8]}
8... b5 {[%clk 0:01:53.1]} 9. O-O {[%clk 0:02:39.2]} 9... Nbd7 {[%clk
0:01:50.1]} 10. e5 {[%clk 0:02:28.9]} 10... Ne8 {[%clk 0:01:48.6]} 11. exd6
{[%clk 0:02:21.7]} 11... Nxd6 {[%clk 0:01:24.7]} 12. c5 {[%clk 0:02:20.6]} 12...
Nf5 {[%clk 0:01:24.7]} 13. Bxf5 {[%clk 0:02:13.3]} 13... gxf5 {[%clk 0:01:25.6]}
14. d5 {[%clk 0:02:13.9]} 14... Nf6 {[%clk 0:01:14.8]} 15. dxc6 {[%clk 0:02:06]}
15... Qxd1 {[%clk 0:01:12.7]} 16. Raxd1 {[%clk 0:01:59.7]} 16... Be6 {[%clk
0:01:13.6]} 17. Nd4 {[%clk 0:01:53.6]} 17... Rfc8 {[%clk 0:01:08.5]} 18. Rfe1
{[%clk 0:01:44.1]} 18... b4 {[%clk 0:00:36.5]} 19. Na4 {[%clk 0:01:43.1]} 19...
Nd5 {[%clk 0:00:30.8]} 20. Nb6 {[%clk 0:01:39.8]} 20... Bxd4 {[%clk 0:00:29.3]}
21. Bxd4 {[%clk 0:01:31.2]} 21... Nxb6 {[%clk 0:00:27]} 22. cxb6 {[%clk
0:01:32.1]} 22... Rxc6 {[%clk 0:00:27.3]} 23. b7 {[%clk 0:01:32.2]} 23... Re8
{[%clk 0:00:20.7]} 24. Ba7 {[%clk 0:01:31.2]} 1-0

[Event "Early-Titled-Tuesday-Blitz-September-12-2023"]
[Site "Chess.com"]
[Date "2023.09.12"]
[Round "2"]
[White "Durarbayli"]
[Black "HalfIsCrayfish"]
[Result "1-0"]
[WhiteElo "2892"]
[BlackElo "2523"]
[TimeControl "180+1"]
[EndTime "8:16:16 PDT"]
[Termination "Durarbayli won by resignation"]

1. e4 {[%clk 0:03:00.9]} 1... c6 {[%clk 0:02:50]} 2. d4 {[%clk 0:03:01.2]} 2...
d5 {[%clk 0:02:50.4]} 3. exd5 {[%clk 0:03:02.1]} 3... cxd5 {[%clk 0:02:50.4]} 4.
c4 {[%clk 0:03:02.8]} 4... Nf6 {[%clk 0:02:50.8]} 5. Nc3 {[%clk 0:03:03.5]} 5...
Nc6 {[%clk 0:02:51.3]} 6. Nf3 {[%clk 0:03:04.1]} 6... Bg4 {[%clk 0:02:51.8]} 7.
cxd5 {[%clk 0:03:04.7]} 7... Nxd5 {[%clk 0:02:51.5]} 8. Qb3 {[%clk 0:03:05.3]}
8... Bxf3 {[%clk 0:02:51.7]} 9. gxf3 {[%clk 0:03:05.9]} 9... e6 {[%clk
0:02:52.4]} 10. Qxb7 {[%clk 0:03:03.5]} 10... Nxd4 {[%clk 0:02:52.9]} 11. Bb5+
{[%clk 0:03:03.6]} 11... Nxb5 {[%clk 0:02:53.2]} 12. Qc6+ {[%clk 0:03:04.1]}
12... Ke7 {[%clk 0:02:53.6]} 13. Qc5+ {[%clk 0:03:04.5]} 13... Qd6 {[%clk
0:02:52.5]} 14. Nxd5+ {[%clk 0:03:01.6]} 14... exd5 {[%clk 0:02:52.3]} 15. Qxb5
{[%clk 0:03:02.5]} 15... Qd7 {[%clk 0:02:37.3]} 16. Qe2+ {[%clk 0:02:55]} 16...
Qe6 {[%clk 0:02:36.6]} 17. Be3 {[%clk 0:02:53.6]} 17... Kd8 {[%clk 0:02:04.4]}
18. O-O-O {[%clk 0:02:47.4]} 18... Bc5 {[%clk 0:01:20.7]} 19. Rxd5+ {[%clk
0:02:41]} 19... Qxd5 {[%clk 0:01:19.6]} 20. Rd1 {[%clk 0:02:41.6]} 20... Bxe3+
{[%clk 0:01:20.2]} 21. fxe3 {[%clk 0:02:39.8]} 21... Rc8+ {[%clk 0:01:20.2]} 22.
Kb1 {[%clk 0:02:39.6]} 22... Qxd1+ {[%clk 0:01:13]} 23. Qxd1+ {[%clk 0:02:40.5]}
23... Ke7 {[%clk 0:01:13.3]} 24. Qd4 {[%clk 0:02:39.4]} 24... Rhd8 {[%clk
0:01:06.9]} 25. Qxa7+ {[%clk 0:02:37.8]} 25... Rd7 {[%clk 0:01:07.4]} 26. Qa4
{[%clk 0:02:36.2]} 26... g6 {[%clk 0:00:49.7]} 27. a3 {[%clk 0:02:32.8]} 27...
h5 {[%clk 0:00:45]} 28. Qb4+ {[%clk 0:02:20.3]} 28... Ke8 {[%clk 0:00:43.8]} 29.
a4 {[%clk 0:02:16.7]} 29... Ra7 {[%clk 0:00:33.9]} 30. a5 {[%clk 0:02:12.4]}
30... Rca8 {[%clk 0:00:25.9]} 31. Qb5+ {[%clk 0:02:12]} 31... Kf8 {[%clk
0:00:24.9]} 32. b4 {[%clk 0:02:12.4]} 32... Kg8 {[%clk 0:00:22.8]} 33. Kb2
{[%clk 0:02:11.9]} 33... Rc7 {[%clk 0:00:19]} 34. Kb3 {[%clk 0:02:06.2]} 34...
Rc1 {[%clk 0:00:15.4]} 35. Qd3 {[%clk 0:02:05.9]} 35... Rc7 {[%clk 0:00:05.9]}
36. a6 {[%clk 0:02:04.5]} 36... Rc6 {[%clk 0:00:04.9]} 37. b5 {[%clk 0:02:04.5]}
37... Rb6 {[%clk 0:00:05.6]} 38. Ka4 {[%clk 0:02:02.7]} 38... Rab8 {[%clk
0:00:06.1]} 39. Ka5 {[%clk 0:02:01.7]} 1-0

[Event "Early-Titled-Tuesday-Blitz-September-12-2023"]
[Site "Chess.com"]
[Date "2023.09.12"]
[Round "2"]
[White "MBA_CHESS_2021"]
[Black "falzehope0"]
[Result "1-0"]
[WhiteElo "2113"]
[BlackElo "2447"]
[TimeControl "180+1"]
[EndTime "8:16:17 PDT"]
[Termination "MBA_CHESS_2021 won by resignation"]

1. d4 {[%clk 0:03:00.9]} 1... e6 {[%clk 0:02:58.4]} 2. e4 {[%clk 0:03:00.1]}
2... d5 {[%clk 0:02:56.4]} 3. exd5 {[%clk 0:02:59.5]} 3... exd5 {[%clk
0:02:54.5]} 4. Bd3 {[%clk 0:03:00.4]} 4... f5 {[%clk 0:02:53.6]} 5. Nf3 {[%clk
0:03:01.3]} 5... Nf6 {[%clk 0:02:53.8]} 6. O-O {[%clk 0:03:01.8]} 6... Bd6
{[%clk 0:02:53.9]} 7. Re1+ {[%clk 0:03:01.4]} 7... Ne4 {[%clk 0:02:50.8]} 8. c4
{[%clk 0:02:57.6]} 8... c6 {[%clk 0:02:50.6]} 9. Nc3 {[%clk 0:02:55.3]} 9... O-O
{[%clk 0:02:49.9]} 10. cxd5 {[%clk 0:02:54.2]} 10... cxd5 {[%clk 0:02:49.7]} 11.
Nxd5 {[%clk 0:02:52.8]} 11... Bxh2+ {[%clk 0:02:48.9]} 12. Nxh2 {[%clk
0:02:16.9]} 12... Qxd5 {[%clk 0:02:47.4]} 13. Nf3 {[%clk 0:02:14.5]} 13... Nc6
{[%clk 0:02:43.5]} 14. Be3 {[%clk 0:02:05.4]} 14... Kh8 {[%clk 0:02:25.2]} 15.
Rc1 {[%clk 0:01:52.5]} 15... b5 {[%clk 0:02:23.3]} 16. Bf4 {[%clk 0:00:51.7]}
16... Nxd4 {[%clk 0:01:54.3]} 17. Bxe4 {[%clk 0:00:49]} 17... fxe4 {[%clk
0:01:46]} 18. Qxd4 {[%clk 0:00:36.9]} 18... Qf5 {[%clk 0:01:44.3]} 19. Be5
{[%clk 0:00:29.4]} 19... exf3 {[%clk 0:01:38.6]} 20. Bxg7+ {[%clk 0:00:29.2]}
20... Kg8 {[%clk 0:01:38.3]} 21. Bxf8 {[%clk 0:00:29.3]} 21... Qg6 {[%clk
0:01:30.4]} 22. g3 {[%clk 0:00:21.5]} 22... Kxf8 {[%clk 0:01:23.8]} 23. Qd8+
{[%clk 0:00:20.9]} 23... Kf7 {[%clk 0:01:18.7]} 24. Rc7+ {[%clk 0:00:20.7]} 1-0

[Event "Early-Titled-Tuesday-Blitz-September-12-2023"]
[Site "Chess.com"]
[Date "2023.09.12"]
[Round "2"]
[White "Rakitic2010"]
[Black "Athanasios2"]
[Result "1-0"]
[WhiteElo "2415"]
[BlackElo "2688"]
[TimeControl "180+1"]
[EndTime "8:16:19 PDT"]
[Termination "Rakitic2010 won by checkmate"]

1. e4 {[%clk 0:03:00.9]} 1... c5 {[%clk 0:02:58]} 2. Nf3 {[%clk 0:03:00.6]} 2...
d6 {[%clk 0:02:56.9]} 3. d4 {[%clk 0:03:00]} 3... cxd4 {[%clk 0:02:56.4]} 4.
Nxd4 {[%clk 0:03:00.9]} 4... Nc6 {[%clk 0:02:54.9]} 5. Nc3 {[%clk 0:03:00.5]}
5... Nf6 {[%clk 0:02:54.4]} 6. f3 {[%clk 0:02:54]} 6... g6 {[%clk 0:02:52.5]} 7.
Be3 {[%clk 0:02:51]} 7... Bg7 {[%clk 0:02:53]} 8. Qd2 {[%clk 0:02:50.5]} 8...
Bd7 {[%clk 0:02:53.6]} 9. h4 {[%clk 0:02:41.4]} 9... h5 {[%clk 0:02:52.5]} 10.
O-O-O {[%clk 0:02:41.3]} 10... Ne5 {[%clk 0:02:50.6]} 11. Be2 {[%clk 0:02:37]}
11... Rc8 {[%clk 0:02:44.4]} 12. Kb1 {[%clk 0:02:33.5]} 12... O-O {[%clk
0:02:43.7]} 13. g4 {[%clk 0:02:31.1]} 13... Nc4 {[%clk 0:02:38.5]} 14. Bxc4
{[%clk 0:02:30.5]} 14... Rxc4 {[%clk 0:02:39.4]} 15. Rhg1 {[%clk 0:02:22.3]}
15... hxg4 {[%clk 0:02:30.3]} 16. h5 {[%clk 0:02:16.9]} 16... e5 {[%clk
0:01:44.7]} 17. h6 {[%clk 0:02:01.5]} 17... Bh8 {[%clk 0:01:44.1]} 18. h7+
{[%clk 0:01:33.9]} 18... Nxh7 {[%clk 0:01:40.4]} 19. Rh1 {[%clk 0:01:31.8]}
19... exd4 {[%clk 0:01:18.7]} 20. Qh2 {[%clk 0:01:25.5]} 20... Kg7 {[%clk
0:00:36.8]} 21. Nd5 {[%clk 0:01:04]} 21... Rg8 {[%clk 0:00:36.9]} 22. Bh6#
{[%clk 0:00:52.4]} 1-0

[Event "Early-Titled-Tuesday-Blitz-September-12-2023"]
[Site "Chess.com"]
[Date "2023.09.12"]
[Round "2"]
[White "ejam94"]
[Black "tylityli"]
[Result "1-0"]
[WhiteElo "2525"]
[BlackElo "2311"]
[TimeControl "180+1"]
[EndTime "8:16:20 PDT"]
[Termination "ejam94 won by resignation"]

1. d4 {[%clk 0:02:57.3]} 1... Nf6 {[%clk 0:02:31.6]} 2. Nf3 {[%clk 0:02:57.4]}
2... d5 {[%clk 0:02:31.3]} 3. e3 {[%clk 0:02:57.8]} 3... c5 {[%clk 0:02:31.8]}
4. dxc5 {[%clk 0:02:56.9]} 4... Qa5+ {[%clk 0:02:28.5]} 5. Bd2 {[%clk
0:02:54.4]} 5... Qxc5 {[%clk 0:02:29.4]} 6. Na3 {[%clk 0:02:49.5]} 6... a6
{[%clk 0:02:27.9]} 7. c4 {[%clk 0:02:49.7]} 7... Nc6 {[%clk 0:02:25.3]} 8. Rc1
{[%clk 0:02:48.8]} 8... d4 {[%clk 0:02:22.6]} 9. Bd3 {[%clk 0:02:44.7]} 9... e5
{[%clk 0:02:20.7]} 10. O-O {[%clk 0:02:42]} 10... Be7 {[%clk 0:02:15]} 11. exd4
{[%clk 0:02:35.8]} 11... exd4 {[%clk 0:02:03]} 12. Nc2 {[%clk 0:02:35]} 12... a5
{[%clk 0:02:00.6]} 13. Re1 {[%clk 0:02:26.2]} 13... O-O {[%clk 0:01:57.7]} 14.
a3 {[%clk 0:02:26.4]} 14... Bg4 {[%clk 0:01:47]} 15. h3 {[%clk 0:02:24.8]} 15...
Bh5 {[%clk 0:01:46.3]} 16. b4 {[%clk 0:02:23.4]} 16... axb4 {[%clk 0:01:45.6]}
17. axb4 {[%clk 0:02:24.3]} 17... Qd6 {[%clk 0:01:45.6]} 18. c5 {[%clk
0:02:11.2]} 18... Qd7 {[%clk 0:01:33]} 19. b5 {[%clk 0:02:09]} 19... Bxf3 {[%clk
0:01:24.4]} 20. Qxf3 {[%clk 0:02:03.6]} 20... Na5 {[%clk 0:01:24.3]} 21. Nb4
{[%clk 0:01:49.5]} 21... Nb3 {[%clk 0:00:51]} 22. Bxh7+ {[%clk 0:01:48.1]} 22...
Kxh7 {[%clk 0:00:50.9]} 23. Qxb3 {[%clk 0:01:48.4]} 23... Rac8 {[%clk
0:00:41.3]} 24. c6 {[%clk 0:01:46.4]} 24... bxc6 {[%clk 0:00:34.7]} 25. Nxc6
{[%clk 0:01:44.6]} 25... Rfe8 {[%clk 0:00:19.3]} 26. Qd3+ {[%clk 0:01:34]} 26...
Kg8 {[%clk 0:00:18.3]} 27. Nxe7+ {[%clk 0:01:33.9]} 27... Rxe7 {[%clk 0:00:17]}
28. Rxc8+ {[%clk 0:01:32.8]} 1-0